bitfinex/quotes_SOLUSD_20241110
["timestamp","ask_amount","ask_price","bid_price","bid_amount"]
[1731220244306,0.1,204.94,204.93,17.12100598]
[1731220244505,0.1,204.94,204.92,17.12100598]
[1731220245817,0.1,204.96,204.92,17.12100598]
[1731220246015,0.1,204.94,204.92,17.12100598]
[1731220246216,0.1,204.96,204.92,17.12100598]
[1731220246618,0.1,204.94,204.92,17.12100598]
[1731220247329,0.1,204.94,204.89,18.88573611]
[1731220247510,0.1,204.96,204.92,17.12100598]
[1731220247717,0.1,204.94,204.92,17.12100598]
[1731220247921,0.1,204.96,204.92,17.12100598]
[1731220248115,0.1,204.96,204.92,16.12100598]
[1731220248426,0.1,204.94,204.92,16.12100598]
[1731220249011,0.1,204.94,204.93,17.12100598]
[1731220249311,0.1,204.94,204.92,17.12100598]
[1731220250314,0.1,204.96,204.92,17.12100598]
[1731220250635,0.1,204.94,204.92,17.12100598]
[1731220250817,0.1,204.94,204.89,18.88573611]
[1731220251130,0.2,204.96,204.93,17.12100598]
[1731220251331,0.2,204.96,204.93,10.95789422]
[1731220251834,0.1,204.94,204.93,10.95789422]
[1731220252912,0.1,204.94,204.92,10.95789422]
[1731220253319,0.1,204.96,204.92,10.95789422]
[1731220253516,0.1,204.92,204.86,17.121006]
[1731220253717,0.1,204.92,204.89,10.95789422]
[1731220253929,0.1,204.92,204.9,10.95789422]
[1731220254930,0.1,204.92,204.89,10.95789422]
[1731220255229,0.1,204.92,204.84,10.957894]
[1731220255432,0.1,204.92,204.89,10.95789422]
[1731220256829,0.1,204.92,204.9,10.95789422]
[1731220257524,0.1,204.92,204.89,10.95789422]
[1731220258612,0.1,204.92,204.9,10.95789422]
[1731220259014,0.1,204.92,204.84,14.29844783]
[1731220259242,0.1,204.92,204.89,10.95789422]
[1731220260438,0.1,204.92,204.91,10.95789422]
[1731220262138,0.1,204.92,204.84,14.29844783]
[1731220262435,0.1,204.92,204.91,10.95789422]
[1731220262935,0.1,204.95,204.91,10.95789422]
[1731220263127,0.1,204.95,204.84,14.29844783]
[1731220263128,0.1,204.95,204.93,10.95789422]
[1731220263732,0.1,204.95,204.92,10.95789422]
[1731220263934,0.1,204.93,204.92,10.95789422]
[1731220264246,0.2,204.98,204.92,10.95789422]
[1731220264429,0.2,204.98,204.95,10.95789422]
[1731220265133,0.2,204.98,204.89,6.0601]
[1731220265134,0.1,204.96,204.89,6.0601]
[1731220265343,0.1,204.96,204.94,10.95789422]
[1731220265837,0.1,204.98,204.94,10.95789422]
[1731220266038,0.1,204.96,204.94,10.95789422]
[1731220266342,0.1,204.98,204.94,10.95789422]
[1731220266539,0.2,204.95,204.84,14.29844783]
[1731220266839,0.2,204.93,204.89,10.95789422]
[1731220268519,0.1,204.9,204.88,10.95789422]
[1731220269133,0.1,204.93,204.88,10.95789422]
[1731220269438,0.1,204.9,204.88,10.95789422]
[1731220269850,0.1,204.89,204.88,10.95789422]
[1731220270134,0.1,204.89,204.87,10.95789422]
[1731220271537,0.1,204.89,204.84,3.34055383]
[1731220271716,0.1,204.89,204.85,10.95789422]
[1731220271918,0.1,204.84,204.77,16.276]
[1731220272136,0.1,204.84,204.83,10.95789422]
[1731220272722,29.26,205.03,204.98,140.85452533]
[1731220272922,17.30189422,204.99,204.91,10.95789422]
[1731220273316,10.95789422,204.95,204.79,9.39858734]
[1731220273517,10.95789422,204.96,204.89,10.95789422]
[1731220273740,6.344,204.99,204.9,10.95789422]
[1731220273911,10.95789422,204.96,204.79,9.39858734]
[1731220274122,6.344,204.99,204.91,10.95789422]
[1731220274325,10.95789422,204.98,204.8,43.93157688]
[1731220274528,10.95789422,204.97,204.9,10.95789422]
[1731220274923,10.95789422,204.97,204.91,10.95789422]
[1731220275434,10.95789422,204.97,204.8,0.1]
[1731220275645,10.95789422,204.97,204.91,10.95789422]
[1731220276213,10.95789422,204.98,204.91,10.95789422]
[1731220276832,10.95789422,204.97,204.9,10.95789422]
[1731220278553,10.95789422,204.94,204.79,9.39858734]
[1731220278855,10.95789422,204.94,204.87,10.95789422]
[1731220279219,10.95789422,204.9,204.79,3.33848734]
[1731220279427,10.95789422,204.9,204.83,10.95789422]
[1731220279625,17.44059422,204.91,204.84,10.95789422]
[1731220279832,17.44059422,204.91,204.85,10.95789422]
[1731220280328,17.44059422,204.91,204.77,19.59173734]
[1731220280530,17.44059422,204.91,204.84,10.95789422]
[1731220281232,6.4827,204.91,204.86,10.95789422]
[1731220281436,6.4827,204.91,204.87,10.95789422]
[1731220281947,6.4827,204.91,204.86,10.95789422]
[1731220282444,43.83157688,205.0,204.8,43.83157688]
[1731220282445,6.516,204.96,204.89,10.95789422]
[1731220282642,6.516,204.96,204.8,50.17057688]
[1731220282643,6.516,204.96,204.9,10.95789422]
[1731220282942,10.95789422,204.95,204.89,10.95789422]
[1731220283143,10.95789422,204.93,204.85,15.4443]
[1731220283317,10.95789422,204.92,204.86,10.95789422]
[1731220283518,6.516,204.96,204.8,59.61347688]
[1731220283519,10.95789422,204.87,204.8,15.7819]
[1731220283746,10.95789422,204.89,204.82,10.95789422]
[1731220285424,10.95789422,204.9,204.83,10.95789422]
[1731220285839,0.12549,204.95,204.84,10.95789422]
[1731220286151,10.95789422,204.9,204.84,10.95789422]
[1731220286646,10.95789422,204.89,204.82,10.95789422]
[1731220287039,10.95789422,204.89,204.8,15.7819]
[1731220287240,10.95789422,204.89,204.82,10.95789422]
[1731220287625,6.516,204.88,204.74,6.339]
[1731220287846,6.516,204.88,204.82,10.95789422]
[1731220288145,17.47389422,204.92,204.85,10.95789422]
[1731220288356,10.95789422,204.9,204.84,10.95789422]
[1731220288529,10.95789422,204.85,204.77,5.06986435]
[1731220288846,10.95789422,204.85,204.79,10.95789422]
[1731220289042,10.95789422,204.86,204.79,10.95789422]
[1731220289247,10.95789422,204.84,204.77,5.06986435]
[1731220289428,10.95789422,204.85,204.78,10.95789422]
[1731220289635,10.95789422,204.87,204.8,10.95789422]
[1731220289950,0.1,204.9,204.8,10.95789422]
[1731220289951,10.95789422,204.86,204.8,10.95789422]
[1731220290327,10.95789422,204.82,204.77,5.06986435]
[1731220290523,15.3373,204.85,204.77,5.06986435]
[1731220290524,11.08338422,204.84,204.77,16.02775857]
[1731220290733,26.29519422,204.85,204.79,10.95789422]
[1731220291146,15.3373,204.85,204.79,10.95789422]
[1731220291333,15.3373,204.85,204.8,10.95789422]
[1731220291534,15.3373,204.85,204.77,5.06986435]
[1731220291749,15.3373,204.85,204.79,10.95789422]
[1731220291941,15.3373,204.85,204.8,10.95789422]
[1731220292251,15.3373,204.85,204.79,10.95789422]
[1731220292456,26.29519422,204.85,204.77,5.06986435]
[1731220292747,26.29519422,204.85,204.78,10.95789422]
[1731220292962,26.29519422,204.85,204.77,5.06986435]
[1731220293152,26.29519422,204.85,204.78,10.95789422]
[1731220293333,10.95789422,204.84,204.77,5.06986435]
[1731220293529,10.95789422,204.83,204.77,5.06986435]
[1731220293728,10.95789422,204.8,204.77,5.06986435]
[1731220294639,10.95789422,204.81,204.77,5.06986435]
[1731220294949,10.95789422,204.78,204.77,5.06986435]
[1731220295127,10.95789422,204.78,204.7,10.95789422]
[1731220295334,10.95789422,204.78,204.71,10.95789422]
[1731220295749,10.95789422,204.76,204.69,10.95789422]
[1731220295947,6.516,204.83,204.67,3.37291771]
[1731220296152,10.95789422,204.79,204.73,10.95789422]
[1731220296748,0.12549,204.8,204.74,10.95789422]
[1731220297051,29.28549,204.8,204.74,10.95789422]
[1731220297347,0.12549,204.8,204.66,0.1]
[1731220297548,11.08338422,204.8,204.74,10.95789422]
[1731220297757,10.95789422,204.8,204.74,10.95789422]
[1731220298051,6.516,204.83,204.65,8.50384753]
[1731220298052,0.1,204.81,204.65,8.50384753]
[1731220298257,10.95789422,204.77,204.7,10.95789422]
[1731220298437,0.12549,204.76,204.7,10.95789422]
[1731220298749,0.12549,204.76,204.71,10.95789422]
[1731220298936,35.776,204.83,204.71,10.95789422]
[1731220299259,0.12549,204.77,204.62,8.50766735]
[1731220299443,0.12549,204.77,204.71,10.95789422]
[1731220299944,0.12549,204.78,204.71,10.95789422]
[1731220300160,11.08338422,204.78,204.67,15.9405]
[1731220300349,6.516,204.83,204.73,10.95789422]
[1731220300545,6.516,204.83,204.67,15.9405]
[1731220300546,0.12549,204.79,204.75,10.95789422]
[1731220300858,0.12549,204.79,204.67,15.9405]
[1731220301062,6.516,204.83,204.69,0.1]
[1731220301246,6.516,204.83,204.76,10.95789422]
[1731220301445,10.95789422,204.82,204.75,10.95789422]
[1731220301663,6.3361,204.89,204.78,10.95789422]
[1731220301843,10.95789422,204.84,204.77,10.95789422]
[1731220302045,10.95789422,204.82,204.67,15.9405]
[1731220302244,0.12549,204.83,204.77,10.95789422]
[1731220302443,0.12549,204.83,204.8,10.95789422]
[1731220302947,0.12549,204.86,204.8,10.95789422]
[1731220303763,29.16,204.88,204.82,10.95789422]
[1731220303939,0.12549,204.87,204.81,10.95789422]
[1731220304448,11.08338422,204.87,204.7,43.83157688]
[1731220304653,0.12549,204.85,204.8,10.95789422]
[1731220304844,6.3361,204.89,204.84,10.95789422]
[1731220305239,0.12549,204.88,204.84,10.95789422]
[1731220305854,0.12549,204.88,204.83,10.95789422]
[1731220306446,0.12549,204.88,204.77,15.9405]
[1731220306647,0.12549,204.88,204.82,10.95789422]
[1731220306865,11.08338422,204.88,204.77,15.9405]
[1731220307168,40.24338422,204.86,204.8,10.95789422]
[1731220307944,11.08338422,204.84,204.71,15.9405]
[1731220308167,29.16,204.88,204.81,10.95789422]
[1731220308369,10.95789422,204.87,204.81,10.95789422]
[1731220308947,0.12549,204.86,204.81,10.95789422]
[1731220309262,0.12549,204.86,204.71,16.0405]
[1731220309263,0.12549,204.86,204.8,10.95789422]
[1731220309462,0.12549,204.84,204.71,15.9405]
[1731220309649,10.95789422,204.82,204.67,24.47737727]
[1731220309846,26.44729422,204.81,204.74,10.95789422]
[1731220310259,15.4894,204.81,204.74,10.95789422]
[1731220310572,0.12549,204.8,204.75,10.95789422]
[1731220311254,0.12549,204.8,204.75,10.45789422]
[1731220311654,0.12549,204.8,204.76,10.95789422]
[1731220311855,0.12549,204.8,204.67,24.47737727]
[1731220312059,0.12549,204.8,204.74,10.95789422]
[1731220312261,0.12549,204.8,204.67,24.47737727]
[1731220312466,0.12549,204.8,204.75,10.95789422]
[1731220313057,6.46159,204.8,204.67,24.47737727]
[1731220313254,6.46159,204.8,204.75,10.95789422]
[1731220313663,6.46159,204.8,204.67,24.47737727]
[1731220313875,6.46159,204.8,204.75,10.95789422]
[1731220315258,6.46159,204.8,204.76,10.95789422]
[1731220315472,6.46159,204.8,204.67,24.47737727]
[1731220315681,6.46159,204.8,204.75,10.95789422]
[1731220316469,6.46159,204.8,204.76,10.95789422]
[1731220318449,6.46159,204.8,204.7,43.83157688]
[1731220318672,6.46159,204.8,204.76,10.95789422]
[1731220319560,6.46159,204.8,204.7,5.09090791]
[1731220319763,6.46159,204.8,204.75,10.95789422]
[1731220319961,6.46159,204.8,204.76,10.95789422]
[1731220320153,6.46159,204.8,204.7,5.09090791]
[1731220320865,6.46159,204.8,204.75,10.95789422]
[1731220321170,6.46159,204.8,204.76,10.95789422]
[1731220321371,6.46159,204.8,204.7,5.09090791]
[1731220321570,6.46159,204.8,204.76,10.95789422]
[1731220321866,6.3361,204.8,204.77,10.95789422]
[1731220322086,50.7549,204.86,204.79,10.95789422]
[1731220322378,0.12549,204.85,204.79,10.95789422]
[1731220322879,21.5949,204.86,204.81,10.95789422]
[1731220323063,21.5949,204.86,204.8,10.95789422]
[1731220323260,0.12549,204.8,204.7,5.09090791]
[1731220323460,0.12549,204.8,204.72,10.95789422]
[1731220323663,0.12549,204.8,204.67,15.9405]
[1731220323888,0.12549,204.8,204.75,10.95789422]
[1731220324177,0.12549,204.81,204.75,10.95789422]
[1731220324561,0.12549,204.81,204.68,5.08991328]
[1731220324871,11.08338422,204.81,204.73,10.95789422]
[1731220325278,29.16,204.85,204.68,5.08991328]
[1731220325279,11.08338422,204.79,204.68,5.08991328]
[1731220325455,11.08338422,204.79,204.71,10.95789422]
[1731220325658,0.12549,204.77,204.71,10.95789422]
[1731220325853,0.12549,204.77,204.67,15.9405]
[1731220326076,0.12549,204.77,204.72,10.95789422]
[1731220326357,0.12549,204.75,204.69,10.95789422]
[1731220326774,0.12549,204.75,204.7,10.95789422]
[1731220326972,0.12549,204.76,204.7,10.95789422]
[1731220327368,0.12549,204.74,204.66,5.09186265]
[1731220327674,50.8549,204.78,204.7,10.95789422]
[1731220327978,0.12549,204.75,204.69,10.95789422]
[1731220328167,0.12549,204.73,204.62,21.12476976]
[1731220328374,10.95789422,204.74,204.62,21.12476976]
[1731220328375,0.12549,204.74,204.68,10.95789422]
[1731220329254,11.08338422,204.72,204.62,21.12476976]
[1731220329456,0.12549,204.72,204.67,10.95789422]
[1731220329657,0.12549,204.72,204.62,21.12476976]
[1731220329863,0.12549,204.73,204.67,10.95789422]
[1731220330076,0.12549,204.73,204.7,10.95789422]
[1731220330277,0.12549,204.73,204.62,21.12476976]
[1731220330457,50.8549,204.78,204.62,21.12476976]
[1731220330458,0.12549,204.77,204.71,10.95789422]
[1731220330660,11.08338422,204.77,204.7,10.95789422]
[1731220330883,11.08338422,204.77,204.62,21.12476976]
[1731220331179,0.12549,204.75,204.69,10.95789422]
[1731220331477,0.12549,204.75,204.7,10.95789422]
[1731220331675,11.08338422,204.76,204.62,21.12476976]
[1731220331858,11.08338422,204.76,204.69,10.95789422]
[1731220332058,11.08338422,204.76,204.62,5.09206976]
[1731220332059,0.12549,204.73,204.62,5.09206976]
[1731220332363,0.12549,204.73,204.69,10.95789422]
[1731220332861,0.12549,204.75,204.69,10.95789422]
[1731220333061,0.12549,204.75,204.62,5.09206976]
[1731220333272,0.12549,204.75,204.69,10.95789422]
[1731220334082,0.12549,204.77,204.7,10.95789422]
[1731220334275,11.08338422,204.77,204.7,10.95789422]
[1731220334481,0.1,204.76,204.62,5.09206976]
[1731220334665,10.95789422,204.76,204.69,10.95789422]
[1731220334863,40.11789422,204.77,204.62,5.09206976]
[1731220335061,0.12549,204.76,204.72,10.95789422]
[1731220335271,0.12549,204.76,204.62,5.09206976]
[1731220335570,0.12549,204.77,204.62,5.09206976]
[1731220335881,29.28549,204.77,204.72,10.95789422]
[1731220336074,29.28549,204.77,204.62,5.09206976]
[1731220336284,32.55279422,204.78,204.71,10.95789422]
[1731220336462,10.95789422,204.74,204.62,5.09206976]
[1731220336669,0.1,204.76,204.57,0.1]
[1731220336868,50.7549,204.78,204.73,10.95789422]
[1731220337173,21.2398,204.83,204.77,10.95789422]
[1731220337680,21.2398,204.83,204.65,0.1]
[1731220337884,21.2398,204.83,204.77,10.95789422]
[1731220338262,21.2398,204.83,204.65,0.1]
[1731220338464,21.2398,204.83,204.77,10.95789422]
[1731220338680,21.2398,204.83,204.65,0.1]
[1731220338882,0.12549,204.82,204.65,0.1]
[1731220339092,0.12549,204.82,204.7,43.83157688]
[1731220339387,17.27779856,204.8,204.64,19.38057825]
[1731220339570,0.12549,204.78,204.72,17.15230856]
[1731220339768,0.12549,204.78,204.64,16.0327]
[1731220339980,17.15230856,204.77,204.7,17.15230856]
[1731220340161,17.15230856,204.77,204.64,16.0327]
[1731220340162,17.15230856,204.78,204.71,17.15230856]
[1731220340360,0.12549,204.77,204.74,17.15230856]
[1731220340566,0.12549,204.77,204.76,17.15230856]
[1731220340766,0.12549,204.81,204.75,17.15230856]
[1731220340998,0.12549,204.81,204.64,16.0327]
[1731220341164,17.27779856,204.81,204.73,17.15230856]
[1731220341369,0.12549,204.79,204.73,17.15230856]
[1731220341683,0.12549,204.79,204.64,16.0327]
[1731220341888,0.12549,204.78,204.72,17.15230856]
[1731220343486,0.12549,204.79,204.73,17.15230856]
[1731220343686,0.12549,204.79,204.74,17.15230856]
[1731220343993,0.12549,204.8,204.74,17.15230856]
[1731220344173,17.27779856,204.8,204.73,17.15230856]
[1731220344374,0.12549,204.8,204.74,17.15230856]
[1731220344592,17.15230856,204.82,204.75,17.15230856]
[1731220344801,0.12549,204.81,204.75,17.15230856]
[1731220345177,21.2398,204.83,204.78,17.15230856]
[1731220345478,21.2398,204.83,204.8,17.15230856]
[1731220345783,21.2398,204.83,204.78,17.15230856]
[1731220346086,21.2398,204.83,204.79,17.15230856]
[1731220346288,21.2398,204.83,204.71,16.3792]
[1731220346469,21.2398,204.83,204.79,17.15230856]
[1731220346671,21.2398,204.83,204.63,3.58001041]
[1731220346672,17.15230856,204.8,204.63,19.85921041]
[1731220346965,0.1,204.82,204.71,17.15230856]
[1731220346966,0.12549,204.77,204.71,17.15230856]
[1731220347170,38.39210856,204.83,204.76,17.15230856]
[1731220347600,21.2398,204.83,204.77,17.15230856]
[1731220347899,21.2398,204.83,204.79,17.15230856]
[1731220348072,21.2398,204.83,204.78,17.15230856]
[1731220348383,21.2398,204.83,204.71,16.3792]
[1731220348384,21.2398,204.83,204.79,17.15230856]
[1731220348593,0.12549,204.82,204.79,17.15230856]
[1731220348796,17.15230856,204.87,204.79,17.15230856]
[1731220348975,21.2398,204.88,204.71,16.4792]
[1731220349176,21.2398,204.88,204.83,17.15230856]
[1731220349486,17.15230856,204.87,204.8,17.15230856]
[1731220350394,0.12549,204.86,204.81,17.15230856]
[1731220350972,0.12549,204.87,204.81,17.15230856]
[1731220351375,17.27779856,204.87,204.71,16.4792]
[1731220351578,0.12549,204.85,204.71,16.3792]
[1731220351885,17.27779856,204.85,204.78,17.15230856]
[1731220352081,0.12549,204.83,204.77,17.15230856]
[1731220354280,0.12549,204.8,204.74,17.15230856]
[1731220354497,0.12549,204.8,204.75,17.15230856]
[1731220354798,17.27779856,204.8,204.73,17.15230856]
[1731220354990,0.12549,204.8,204.74,17.15230856]
[1731220355289,0.12549,204.78,204.66,26.36783816]
[1731220355524,20.0,204.86,204.66,26.36783816]
[1731220355525,17.15230856,204.84,204.77,17.15230856]
[1731220355691,17.15230856,204.85,204.78,17.15230856]
[1731220355896,17.15230856,204.85,204.7,17.15230856]
[1731220355897,0.12549,204.84,204.79,17.15230856]
[1731220356978,17.27779856,204.85,204.78,17.15230856]
[1731220357184,17.27779856,204.85,204.7,17.25230856]
[1731220357185,17.15230856,204.87,204.81,17.15230856]
[1731220357487,50.3998,204.88,204.74,15.4262]
[1731220357488,21.2398,204.88,204.83,17.15230856]
[1731220358791,21.2398,204.88,204.84,17.15230856]
[1731220358984,20.2306305,204.88,204.84,17.15230856]
[1731220359297,0.12549,204.87,204.83,17.15230856]
[1731220359798,0.12549,204.87,204.84,17.15230856]
[1731220360298,0.12549,204.87,204.83,17.15230856]
[1731220360680,0.12549,204.87,204.84,17.15230856]
[1731220361200,17.15230856,204.9,204.84,17.15230856]
[1731220361599,0.8057353,204.91,204.88,17.15230856]
[1731220361799,0.8057353,204.91,204.89,17.15230856]
[1731220362098,0.8057353,204.91,204.9,17.15230856]
[1731220362396,0.8057353,204.91,204.9,34.30461712]
[1731220362599,0.8057353,204.91,204.83,25.30929087]
[1731220363084,0.8057353,204.91,204.9,17.15230856]
[1731220363605,0.8057353,204.91,204.9,34.30461712]
[1731220363894,17.15230856,205.07,204.91,21.9567]
[1731220364094,17.15230856,205.07,205.0,17.15230856]
[1731220364298,22.23765824,205.07,205.0,17.15230856]
[1731220364499,5.08534968,205.07,205.02,17.15230856]
[1731220364676,22.23765824,205.07,205.01,17.15230856]
[1731220364874,5.08534968,205.07,205.02,17.15230856]
[1731220365075,5.08534968,205.07,204.93,0.1]
[1731220365076,5.08534968,205.07,205.01,17.15230856]
[1731220365280,5.08534968,205.07,204.91,21.9567]
[1731220365281,17.15230856,205.06,205.0,17.15230856]
[1731220365484,22.23765824,205.07,205.01,17.15230856]
[1731220365686,5.08534968,205.07,205.01,17.15230856]
[1731220365872,5.08534968,205.07,205.02,17.15230856]
[1731220366191,6.4983,205.11,205.05,17.15230856]
[1731220366396,17.15230856,205.09,205.02,17.15230856]
[1731220366695,0.12549,205.08,205.02,17.15230856]
[1731220367278,0.12549,205.08,205.03,17.15230856]
[1731220367477,17.27779856,205.07,205.01,17.15230856]
[1731220367702,11.58301413,205.11,204.98,17.15230856]
[1731220367703,17.15230856,205.05,204.98,17.15230856]
[1731220368399,17.15230856,204.99,204.91,21.9567]
[1731220368700,17.15230856,205.0,204.94,17.15230856]
[1731220368899,17.15230856,205.01,204.94,17.15230856]
[1731220369198,0.12549,205.01,204.95,17.15230856]
[1731220369593,0.12549,205.01,204.96,17.15230856]
[1731220369988,17.15230856,205.04,204.97,17.15230856]
[1731220370291,17.15230856,205.04,204.91,21.9567]
[1731220370292,17.15230856,205.05,204.99,17.15230856]
[1731220371000,0.12549,205.04,205.0,17.15230856]
[1731220371198,0.12549,205.04,204.99,17.15230856]
[1731220371501,0.12549,205.04,204.98,17.15230856]
[1731220371707,0.12549,205.09,205.0,17.15230856]
[1731220371880,17.27779856,205.05,204.98,17.15230856]
[1731220372080,17.15230856,205.03,204.96,17.15230856]
[1731220372702,17.15230856,205.02,204.96,17.15230856]
[1731220372905,17.15230856,205.03,204.96,17.15230856]
[1731220373702,0.12549,205.03,204.97,17.15230856]
[1731220373910,0.12549,205.03,204.98,17.15230856]
[1731220374104,17.15230856,205.09,205.02,17.15230856]
[1731220374291,17.15230856,205.04,204.97,17.15230856]
[1731220374491,17.27779856,205.03,204.91,25.30103982]
[1731220374691,17.27779856,205.03,204.96,17.15230856]
[1731220375383,0.12549,205.03,204.97,17.15230856]
[1731220375600,22.23702269,205.11,205.02,17.15230856]
[1731220375806,17.15230856,205.11,205.05,17.15230856]
[1731220376012,29.16,205.17,205.05,17.15230856]
[1731220376013,17.15230856,205.12,205.05,17.15230856]
[1731220376182,17.15230856,205.13,205.06,17.15230856]
[1731220376389,17.15230856,205.14,205.08,17.15230856]
[1731220377084,17.15230856,205.16,205.09,17.15230856]
[1731220377308,17.15230856,205.17,205.1,17.15230856]
[1731220377486,17.15230856,205.21,205.14,17.15230856]
[1731220377691,17.15230856,205.26,205.19,17.15230856]
[1731220377905,17.15230856,205.24,205.17,17.15230856]
[1731220378105,17.15230856,205.25,205.18,17.15230856]
[1731220378308,17.27779856,205.24,205.17,17.15230856]
[1731220378612,17.15230856,205.2,205.13,17.15230856]
[1731220378981,35.5277,205.28,205.14,17.15230856]
[1731220378982,17.15230856,205.21,205.14,17.15230856]
[1731220379187,17.15230856,205.23,205.16,17.15230856]
[1731220379406,6.2677,205.28,205.11,15.5259]
[1731220379593,27.33643134,205.22,205.15,27.33643134]
[1731220379789,0.12549,205.21,205.15,27.33643134]
[1731220380285,0.12549,205.2,205.14,27.33643134]
[1731220380512,27.46192134,205.2,205.13,27.33643134]
[1731220381206,0.12549,205.18,205.12,27.33643134]
[1731220381409,27.46192134,205.18,205.11,27.33643134]
[1731220382100,0.12549,205.16,205.1,27.33643134]
[1731220382304,0.12549,205.16,205.06,15.5259]
[1731220382305,27.33643134,205.16,205.06,15.5259]
[1731220382507,27.46192134,205.15,205.08,27.33643134]
[1731220382807,27.33643134,205.14,205.07,27.33643134]
[1731220382986,27.33643134,205.14,205.02,22.0564]
[1731220382987,27.33643134,205.14,205.08,27.33643134]
[1731220383692,27.33643134,205.14,205.02,25.46888034]
[1731220383693,0.12549,205.12,205.06,27.33643134]
[1731220384601,0.12549,205.11,205.06,27.33643134]
[1731220384997,0.12549,205.11,205.07,27.33643134]
[1731220385206,27.33643134,205.16,205.09,27.33643134]
[1731220385387,33.60413134,205.17,205.1,27.33643134]
[1731220385587,6.2677,205.17,205.12,27.33643134]
[1731220385787,33.60413134,205.17,205.02,18.85978977]
[1731220385994,27.33643134,205.14,205.07,27.33643134]
[1731220386293,0.12549,205.13,205.07,27.33643134]
[1731220386894,27.33643134,205.11,205.04,27.33643134]
[1731220387299,27.33643134,205.1,205.03,27.33643134]
[1731220387693,0.12549,205.12,205.07,27.33643134]
[1731220387995,27.33643134,205.16,205.1,27.33643134]
[1731220388200,27.33643134,205.11,205.02,15.5259]
[1731220388508,27.33643134,205.11,205.04,27.33643134]
[1731220389308,0.12549,205.11,205.06,27.33643134]
[1731220389508,27.33643134,205.13,205.06,27.33643134]
[1731220389710,27.33643134,205.15,205.08,27.33643134]
[1731220389883,33.60413134,205.17,205.11,27.33643134]
[1731220390415,27.33643134,205.18,205.11,27.33643134]
[1731220390596,27.33643134,205.19,205.12,27.33643134]
[1731220390909,6.2677,205.22,205.09,27.33643134]
[1731220390910,27.46192134,205.16,205.09,27.33643134]
[1731220391111,27.33643134,205.15,205.08,27.33643134]
[1731220391408,27.33643134,205.14,205.08,27.33643134]
[1731220391618,27.33643134,205.15,205.08,27.33643134]
[1731220391907,27.33643134,205.16,205.09,27.33643134]
[1731220392388,0.12549,205.15,205.1,27.33643134]
[1731220392715,27.33643134,205.19,205.11,27.33643134]
[1731220392897,27.33643134,205.19,205.12,27.33643134]
[1731220393102,0.12549,205.18,205.13,27.33643134]
[1731220393614,27.33643134,205.2,205.13,27.33643134]
[1731220394189,27.46192134,205.19,205.12,27.33643134]
[1731220394408,27.33643134,205.17,205.09,27.33643134]
[1731220394614,0.12549,205.14,205.07,27.33643134]
[1731220394910,27.33643134,205.13,205.06,27.33643134]
[1731220395396,0.12549,205.13,205.06,27.33643134]
[1731220396020,0.12549,205.13,205.07,27.33643134]
[1731220396508,0.12549,205.14,205.08,27.33643134]
[1731220396716,27.46192134,205.14,205.07,27.33643134]
[1731220397210,27.46192134,205.12,205.05,27.33643134]
[1731220397413,0.12549,205.12,205.06,27.33643134]
[1731220397600,0.12549,205.12,205.06,27.03643134]
[1731220397921,15.3246,205.16,205.02,15.5259]
[1731220397922,0.12549,205.11,205.02,15.5259]
[1731220398219,0.12549,205.11,205.05,27.33643134]
[1731220398706,27.33643134,205.12,205.02,15.5259]
[1731220398707,0.12549,205.12,205.06,27.33643134]
[1731220399502,0.12549,205.11,205.05,27.33643134]
[1731220400719,27.46192134,205.08,205.01,27.33643134]
[1731220401009,27.46192134,205.08,204.93,6.2205]
[1731220401010,27.33643134,205.02,204.93,6.2205]
[1731220401211,0.12549,205.08,204.93,6.2205]
[1731220401212,0.12549,205.03,204.93,6.2205]
[1731220401398,0.12549,205.08,204.92,5.08519781]
[1731220401601,0.12549,205.01,204.95,17.11598635]
[1731220401800,17.11598635,204.98,204.92,5.08519781]
[1731220402126,0.12549,204.98,204.92,17.11598635]
[1731220403420,0.12549,204.98,204.92,27.39737377]
[1731220404615,0.12549,204.99,204.93,27.39737377]
[1731220405420,0.12549,204.99,204.86,15.4882]
[1731220405603,0.12549,204.99,204.93,27.39737377]
[1731220407114,0.12549,204.98,204.93,27.39737377]
[1731220407297,0.12549,204.98,204.92,27.39737377]
[1731220407916,0.12549,204.98,204.93,27.39737377]
[1731220408223,27.39737377,204.99,204.93,27.39737377]
[1731220408224,0.12549,204.99,204.93,27.39737377]
[1731220408909,29.16,205.06,204.88,0.1]